[Event "Titled Tuesday Blitz November 08 Early 2022"]
[White "Yurovskykh, Oleksandr"]
[Black "Fernandez Guillen, Ernesto J."]
[WhiteFideId "14134020"]
[BlackFideId "3512428"]
[WhiteElo "2265"]
[BlackElo "2450"]
[Result "0-1"]
[Round "06"]
[TimeControl "180+1"]
[Date "2022.11.09"]
[WhiteClock "0:00:02"]
[BlackClock "0:00:04"]

1. d4 {[%clk 0:02:59]}  Nf6 {[%clk 0:02:59]} 2. Nf3 {[%clk 0:02:58]}  e6 {[%clk 0:02:56]} 3. Bf4 {[%clk 0:02:59]}  b6 {[%clk 0:02:57]} 4. e3 {[%clk 0:02:59]}  Bb7 {[%clk 0:02:58]} 5. Bd3 {[%clk 0:03:00]}  Be7 {[%clk 0:02:59]} 6. h3 {[%clk 0:02:59]}  O-O {[%clk 0:02:58]} 7. O-O {[%clk 0:02:59]}  c5 {[%clk 0:02:59]} 8. c3 {[%clk 0:03:00]}  d5 {[%clk 0:02:56]} 9. Nbd2 {[%clk 0:03:00]}  Nbd7 {[%clk 0:02:56]} 10. Qe2 {[%clk 0:02:59]}  Ne4 {[%clk 0:02:53]} 11. Ne5 {[%clk 0:02:56]}  Nxe5 {[%clk 0:02:51]} 12. Bxe5 {[%clk 0:02:57]}  Rc8 {[%clk 0:02:46]} 13. Nxe4 {[%clk 0:02:47]}  dxe4 {[%clk 0:02:46]} 14. Ba6 {[%clk 0:02:47]}  Qd7 {[%clk 0:02:45]} 15. Rfd1 {[%clk 0:02:44]}  Bxa6 {[%clk 0:02:28]} 16. Qxa6 {[%clk 0:02:45]}  c4 {[%clk 0:02:28]} 17. a4 {[%clk 0:02:31]}  f6 {[%clk 0:02:20]} 18. Bg3 {[%clk 0:02:31]}  Rfd8 {[%clk 0:01:49]} 19. Qb5 {[%clk 0:02:30]}  Qb7 {[%clk 0:01:46]} 20. a5 {[%clk 0:02:24]}  Rd5 {[%clk 0:01:45]} 21. a6 {[%clk 0:02:24]}  Qc6 {[%clk 0:01:46]} 22. Qxc6 {[%clk 0:02:04]}  Rxc6 {[%clk 0:01:47]} 23. f3 {[%clk 0:01:55]}  exf3 {[%clk 0:01:29]} 24. gxf3 {[%clk 0:01:56]}  Rg5 {[%clk 0:01:19]} 25. Kf2 {[%clk 0:01:53]}  Rb5 {[%clk 0:01:20]} 26. Ra2 {[%clk 0:01:43]}  Bd6 {[%clk 0:01:17]} 27. Bxd6 {[%clk 0:01:37]}  Rxd6 {[%clk 0:01:18]} 28. e4 {[%clk 0:01:37]}  Kf7 {[%clk 0:01:18]} 29. Ke3 {[%clk 0:01:37]}  e5 {[%clk 0:01:16]} 30. d5 {[%clk 0:01:31]}  f5 {[%clk 0:01:15]} 31. exf5 {[%clk 0:01:01]}  Rdxd5 {[%clk 0:01:13]} 32. Rxd5 {[%clk 0:01:01]}  Rxd5 {[%clk 0:01:14]} 33. Ke4 {[%clk 0:00:53]}  Rb5 {[%clk 0:00:32]} 34. Ra4 {[%clk 0:00:44]}  Rc5 {[%clk 0:00:32]} 35. Ra1 {[%clk 0:00:41]}  Kf6 {[%clk 0:00:32]} 36. Rd1 {[%clk 0:00:38]}  Ra5 {[%clk 0:00:31]} 37. Rd6+ {[%clk 0:00:29]}  Ke7 {[%clk 0:00:31]} 38. Rc6 {[%clk 0:00:28]}  Rxa6 {[%clk 0:00:30]} 39. Rxc4 {[%clk 0:00:28]}  Kd6 {[%clk 0:00:28]} 40. b4 {[%clk 0:00:23]}  Ra1 {[%clk 0:00:27]} 41. Rc8 {[%clk 0:00:21]}  Re1+ {[%clk 0:00:27]} 42. Kd3 {[%clk 0:00:22]}  Rh1 {[%clk 0:00:26]} 43. Ra8 {[%clk 0:00:10]}  Rxh3 {[%clk 0:00:26]} 44. Ke3 {[%clk 0:00:10]}  Rg3 {[%clk 0:00:16]} 45. Rxa7 {[%clk 0:00:10]}  h5 {[%clk 0:00:16]} 46. Rb7 {[%clk 0:00:09]}  Kc6 {[%clk 0:00:16]} 47. Re7 {[%clk 0:00:09]}  Kd5 {[%clk 0:00:17]} 48. Rb7 {[%clk 0:00:06]}  h4 {[%clk 0:00:13]} 49. Rxb6 {[%clk 0:00:04]}  h3 {[%clk 0:00:13]} 50. Rb8 {[%clk 0:00:05]}  e4 {[%clk 0:00:08]} 51. Rd8+ {[%clk 0:00:05]}  Ke5 {[%clk 0:00:08]} 52. Re8+ {[%clk 0:00:05]}  Kxf5 {[%clk 0:00:08]} 53. Rxe4 {[%clk 0:00:05]}  g5 {[%clk 0:00:03]} 54. Re8 {[%clk 0:00:04]}  g4 {[%clk 0:00:03]} 55. Rf8+ {[%clk 0:00:02]}  Ke6 {[%clk 0:00:04]} 0-1


[Site "https://www.chess.com"]

[Event "Titled Tuesday Blitz November 08 Early 2022"]
[White "Zemlyanskii, Ivan"]
[Black "Lazavik, Denis"]
[WhiteFideId "24249971"]
[BlackFideId "13515110"]
[WhiteElo "2107"]
[BlackElo "2483"]
[Result "0-1"]
[Round "06"]
[TimeControl "180+1"]
[Date "2022.11.08"]
[WhiteClock "0:00:04"]
[BlackClock "0:00:06"]

1. d4 {[%clk 0:03:00]}  f5 {[%clk 0:02:59]} 2. Qd3 {[%clk 0:02:58]}  Nc6 {[%clk 0:02:58]} 3. Nf3 {[%clk 0:01:52]}  e6 {[%clk 0:02:55]} 4. c4 {[%clk 0:01:50]}  Nf6 {[%clk 0:02:53]} 5. Nc3 {[%clk 0:01:50]}  Bb4 {[%clk 0:02:53]} 6. d5 {[%clk 0:01:37]}  exd5 {[%clk 0:02:38]} 7. cxd5 {[%clk 0:01:34]}  Ne7 {[%clk 0:02:39]} 8. Bd2 {[%clk 0:01:16]}  O-O {[%clk 0:02:25]} 9. Qc4 {[%clk 0:01:11]}  Bd6 {[%clk 0:02:09]} 10. g3 {[%clk 0:01:11]}  a6 {[%clk 0:02:08]} 11. Bg2 {[%clk 0:01:07]}  b5 {[%clk 0:02:07]} 12. Qb3 {[%clk 0:01:07]}  Bb7 {[%clk 0:02:05]} 13. Nd4 {[%clk 0:01:07]}  Kh8 {[%clk 0:02:03]} 14. a3 {[%clk 0:01:01]}  Qe8 {[%clk 0:02:00]} 15. O-O {[%clk 0:01:00]}  Qf7 {[%clk 0:02:00]} 16. Bg5 {[%clk 0:00:52]}  Be5 {[%clk 0:01:43]} 17. Bxf6 {[%clk 0:00:49]}  Qxf6 {[%clk 0:01:41]} 18. e3 {[%clk 0:00:45]}  Rab8 {[%clk 0:01:31]} 19. Rad1 {[%clk 0:00:42]}  Nc8 {[%clk 0:01:23]} 20. f4 {[%clk 0:00:42]}  Bd6 {[%clk 0:01:06]} 21. e4 {[%clk 0:00:42]}  fxe4 {[%clk 0:00:56]} 22. Nxe4 {[%clk 0:00:42]}  Qh6 {[%clk 0:00:56]} 23. Rfe1 {[%clk 0:00:37]}  Nb6 {[%clk 0:00:44]} 24. Ng5 {[%clk 0:00:33]}  Qf6 {[%clk 0:00:43]} 25. Qd3 {[%clk 0:00:33]}  g6 {[%clk 0:00:38]} 26. Bh3 {[%clk 0:00:33]}  Bxd5 {[%clk 0:00:34]} 27. Bg2 {[%clk 0:00:26]}  Bc5 {[%clk 0:00:29]} 28. Bxd5 {[%clk 0:00:20]}  Nxd5 {[%clk 0:00:30]} 29. Ne4 {[%clk 0:00:21]}  Bxd4+ {[%clk 0:00:29]} 30. Qxd4 {[%clk 0:00:22]}  Qxd4+ {[%clk 0:00:29]} 31. Rxd4 {[%clk 0:00:23]}  c6 {[%clk 0:00:30]} 32. Nc5 {[%clk 0:00:23]}  Rf7 {[%clk 0:00:20]} 33. Nxa6 {[%clk 0:00:21]}  Rc8 {[%clk 0:00:20]} 34. Nc5 {[%clk 0:00:22]}  Kg7 {[%clk 0:00:20]} 35. Ne4 {[%clk 0:00:21]}  Re7 {[%clk 0:00:19]} 36. Red1 {[%clk 0:00:13]}  Nb6 {[%clk 0:00:19]} 37. Nc3 {[%clk 0:00:13]}  d5 {[%clk 0:00:18]} 38. a4 {[%clk 0:00:14]}  bxa4 {[%clk 0:00:18]} 39. Nxa4 {[%clk 0:00:15]}  Nc4 {[%clk 0:00:18]} 40. b3 {[%clk 0:00:15]}  Ne3 {[%clk 0:00:18]} 41. Re1 {[%clk 0:00:14]}  Rce8 {[%clk 0:00:19]} 42. Rd3 {[%clk 0:00:14]}  Nf5 {[%clk 0:00:19]} 43. Rxe7+ {[%clk 0:00:15]}  Rxe7 {[%clk 0:00:20]} 44. Nc3 {[%clk 0:00:13]}  Re1+ {[%clk 0:00:19]} 45. Kf2 {[%clk 0:00:14]}  Rc1 {[%clk 0:00:20]} 46. b4 {[%clk 0:00:10]}  Nd6 {[%clk 0:00:19]} 47. b5 {[%clk 0:00:09]}  Rc2+ {[%clk 0:00:12]} 48. Ke1 {[%clk 0:00:08]}  cxb5 {[%clk 0:00:09]} 49. Rxd5 {[%clk 0:00:06]}  Nf5 {[%clk 0:00:09]} 50. Nxb5 {[%clk 0:00:06]}  Rxh2 {[%clk 0:00:09]} 51. Rd7+ {[%clk 0:00:07]}  Kh6 {[%clk 0:00:09]} 52. Nd6 {[%clk 0:00:07]}  Nxg3 {[%clk 0:00:07]} 53. Nf7+ {[%clk 0:00:08]}  Kh5 {[%clk 0:00:08]} 54. Ne5 {[%clk 0:00:07]}  h6 {[%clk 0:00:08]} 55. Rd5 {[%clk 0:00:04]}  Nf5 {[%clk 0:00:08]} 56. Kf1 {[%clk 0:00:01]}  Rh4 {[%clk 0:00:08]} 57. Nd3 {[%clk 0:00:01]}  Rh3 {[%clk 0:00:06]} 58. Ke2 {[%clk 0:00:02]}  Kh4 {[%clk 0:00:05]} 59. Kd2 {[%clk 0:00:02]}  Rh2+ {[%clk 0:00:05]} 60. Kc3 {[%clk 0:00:01]}  Rg2 {[%clk 0:00:05]} 61. Rd8 {[%clk 0:00:02]}  Kg3 {[%clk 0:00:05]} 62. Kc4 {[%clk 0:00:02]}  Rc2+ {[%clk 0:00:05]} 63. Kd5 {[%clk 0:00:02]}  Re2 {[%clk 0:00:05]} 64. Kc4 {[%clk 0:00:03]}  Re4+ {[%clk 0:00:05]} 65. Kc3 {[%clk 0:00:03]}  h5 {[%clk 0:00:05]} 66. Rg8 {[%clk 0:00:03]}  Nh4 {[%clk 0:00:06]} 67. Ne5 {[%clk 0:00:03]}  Rxf4 {[%clk 0:00:06]} 68. Nxg6 {[%clk 0:00:04]}  Rg4 {[%clk 0:00:06]} 0-1


[Site "https://www.chess.com"]

[Event "Titled Tuesday Blitz November 08 Early 2022"]
[White "Alhadad, Mahmoud"]
[Black "Tharushi, T H D Niklesha"]
[WhiteFideId "11501863"]
[BlackFideId "9918264"]
[WhiteElo "1955"]
[BlackElo "1596"]
[Result "1/2-1/2"]
[Round "07"]
[TimeControl "180+1"]
[Date "2022.11.09"]
[WhiteClock "0:00:11"]
[BlackClock "0:00:14"]

1. e4 {[%clk 0:02:58]}  c6 {[%clk 0:02:58]} 2. d4 {[%clk 0:02:57]}  d5 {[%clk 0:02:58]} 3. f3 {[%clk 0:02:58]}  e6 {[%clk 0:02:57]} 4. e5 {[%clk 0:02:55]}  f6 {[%clk 0:02:54]} 5. f4 {[%clk 0:02:55]}  fxe5 {[%clk 0:02:54]} 6. fxe5 {[%clk 0:02:56]}  Nh6 {[%clk 0:02:52]} 7. Bxh6 {[%clk 0:02:55]}  gxh6 {[%clk 0:02:53]} 8. Qh5+ {[%clk 0:02:55]}  Ke7 {[%clk 0:02:50]} 9. Be2 {[%clk 0:02:41]}  Qe8 {[%clk 0:02:47]} 10. Qh4+ {[%clk 0:02:40]}  Kd7 {[%clk 0:02:47]} 11. Bh5 {[%clk 0:02:40]}  Qe7 {[%clk 0:02:45]} 12. Qg4 {[%clk 0:02:35]}  Na6 {[%clk 0:02:39]} 13. Nf3 {[%clk 0:02:33]}  Nb4 {[%clk 0:02:38]} 14. Na3 {[%clk 0:02:30]}  a5 {[%clk 0:02:31]} 15. c3 {[%clk 0:02:30]}  Nd3+ {[%clk 0:02:29]} 16. Kd2 {[%clk 0:02:17]}  Nf2 {[%clk 0:02:24]} 17. Qg3 {[%clk 0:02:11]}  Nxh1 {[%clk 0:02:23]} 18. Rxh1 {[%clk 0:02:11]}  b5 {[%clk 0:02:24]} 19. Rf1 {[%clk 0:02:10]}  b4 {[%clk 0:02:24]} 20. Nc2 {[%clk 0:02:09]}  bxc3+ {[%clk 0:02:23]} 21. bxc3 {[%clk 0:02:09]}  Ba6 {[%clk 0:02:23]} 22. Rf2 {[%clk 0:02:07]}  Bg7 {[%clk 0:02:22]} 23. Qh3 {[%clk 0:01:53]}  Rhf8 {[%clk 0:02:18]} 24. Bg4 {[%clk 0:01:51]}  Rf7 {[%clk 0:02:00]} 25. Kc1 {[%clk 0:01:20]}  Rb8 {[%clk 0:01:39]} 26. Rd2 {[%clk 0:01:05]}  Bc4 {[%clk 0:01:23]} 27. a3 {[%clk 0:00:23]}  Ba2 {[%clk 0:01:19]} 28. Rd1 {[%clk 0:00:24]}  Rb1+ {[%clk 0:01:15]} 29. Kd2 {[%clk 0:00:24]}  Rxd1+ {[%clk 0:01:15]} 30. Kxd1 {[%clk 0:00:25]}  Bb3 {[%clk 0:01:16]} 31. Kd2 {[%clk 0:00:24]}  a4 {[%clk 0:01:10]} 32. Ng1 {[%clk 0:00:17]}  Rf2+ {[%clk 0:01:08]} 33. Ne2 {[%clk 0:00:17]}  Bxc2 {[%clk 0:00:52]} 34. Kxc2 {[%clk 0:00:17]}  Qxa3 {[%clk 0:00:52]} 35. Bxe6+ {[%clk 0:00:16]}  Kc7 {[%clk 0:00:52]} 36. Bg4 {[%clk 0:00:11]}  Qb3+ {[%clk 0:00:45]} 37. Kd3 {[%clk 0:00:10]}  Qc4+ {[%clk 0:00:45]} 38. Kd2 {[%clk 0:00:08]}  a3 {[%clk 0:00:44]} 39. e6 {[%clk 0:00:09]}  Bf8 {[%clk 0:00:42]} 40. Qg3+ {[%clk 0:00:09]}  Bd6 {[%clk 0:00:40]} 41. Qxf2 {[%clk 0:00:09]}  a2 {[%clk 0:00:41]} 42. Qf1 {[%clk 0:00:10]}  Qb3 {[%clk 0:00:39]} 43. Nc1 {[%clk 0:00:07]}  Qb1 {[%clk 0:00:39]} 44. Qf7+ {[%clk 0:00:05]}  Kb6 {[%clk 0:00:37]} 45. Nxa2 {[%clk 0:00:06]}  Qxa2+ {[%clk 0:00:37]} 46. Kd3 {[%clk 0:00:06]}  Qb1+ {[%clk 0:00:36]} 47. Ke3 {[%clk 0:00:06]}  Qe1+ {[%clk 0:00:36]} 48. Kf3 {[%clk 0:00:05]}  Qxc3+ {[%clk 0:00:35]} 49. Kf2 {[%clk 0:00:05]}  Qxd4+ {[%clk 0:00:35]} 50. Kf1 {[%clk 0:00:04]}  Qd3+ {[%clk 0:00:34]} 51. Be2 {[%clk 0:00:04]}  Qb1+ {[%clk 0:00:31]} 52. Kf2 {[%clk 0:00:03]}  Bc5+ {[%clk 0:00:31]} 53. Kf3 {[%clk 0:00:03]}  Qe4+ {[%clk 0:00:31]} 54. Kg3 {[%clk 0:00:03]}  Qg6+ {[%clk 0:00:31]} 55. Qxg6 {[%clk 0:00:01]}  hxg6 {[%clk 0:00:32]} 56. Kf4 {[%clk 0:00:01]}  Bd6+ {[%clk 0:00:31]} 57. Kg4 {[%clk 0:00:01]}  Kc7 {[%clk 0:00:31]} 58. Bd3 {[%clk 0:00:01]}  g5 {[%clk 0:00:30]} 59. Kf5 {[%clk 0:00:01]}  Kd8 {[%clk 0:00:26]} 60. Kf6 {[%clk 0:00:01]}  c5 {[%clk 0:00:24]} 61. Kf7 {[%clk 0:00:01]}  c4 {[%clk 0:00:24]} 62. Bc2 {[%clk 0:00:02]}  d4 {[%clk 0:00:23]} 63. Kg7 {[%clk 0:00:03]}  d3 {[%clk 0:00:23]} 64. Ba4 {[%clk 0:00:03]}  d2 {[%clk 0:00:22]} 65. Kxh6 {[%clk 0:00:03]}  g4 {[%clk 0:00:18]} 66. Kg5 {[%clk 0:00:04]}  c3 {[%clk 0:00:17]} 67. Kxg4 {[%clk 0:00:04]}  Bxh2 {[%clk 0:00:15]} 68. Kf5 {[%clk 0:00:04]}  Ke7 {[%clk 0:00:15]} 69. g4 {[%clk 0:00:04]}  Bg1 {[%clk 0:00:14]} 70. g5 {[%clk 0:00:04]}  Bd4 {[%clk 0:00:15]} 71. Kg6 {[%clk 0:00:04]}  Bc5 {[%clk 0:00:15]} 72. Bb3 {[%clk 0:00:04]}  Bd4 {[%clk 0:00:15]} 73. Kf5 {[%clk 0:00:04]}  Bg7 {[%clk 0:00:14]} 74. g6 {[%clk 0:00:05]}  Bd4 {[%clk 0:00:15]} 75. Ke4 {[%clk 0:00:05]}  Bg7 {[%clk 0:00:15]} 76. Kd5 {[%clk 0:00:05]}  Bf6 {[%clk 0:00:15]} 77. Ke4 {[%clk 0:00:06]}  Kf8 {[%clk 0:00:15]} 78. Kd3 {[%clk 0:00:05]}  Kg7 {[%clk 0:00:16]} 79. Kc2 {[%clk 0:00:05]}  Kxg6 {[%clk 0:00:15]} 80. Bc4 {[%clk 0:00:05]}  Kg7 {[%clk 0:00:14]} 81. Be2 {[%clk 0:00:06]}  Kf8 {[%clk 0:00:15]} 82. Bd1 {[%clk 0:00:06]}  Ke7 {[%clk 0:00:15]} 83. Bg4 {[%clk 0:00:06]}  Kd6 {[%clk 0:00:15]} 84. Bf5 {[%clk 0:00:06]}  Ke5 {[%clk 0:00:15]} 85. Bh3 {[%clk 0:00:06]}  Kf4 {[%clk 0:00:14]} 86. Bf1 {[%clk 0:00:04]}  Kg3 {[%clk 0:00:14]} 87. Kd1 {[%clk 0:00:05]}  Kf2 {[%clk 0:00:13]} 88. Bc4 {[%clk 0:00:05]}  Ke3 {[%clk 0:00:13]} 89. Bb3 {[%clk 0:00:05]}  Kd4 {[%clk 0:00:14]} 90. Bc2 {[%clk 0:00:06]}  Kc5 {[%clk 0:00:14]} 91. Ba4 {[%clk 0:00:06]}  Kb4 {[%clk 0:00:14]} 92. Bc2 {[%clk 0:00:06]}  Be7 {[%clk 0:00:13]} 93. Bd3 {[%clk 0:00:06]}  Kb3 {[%clk 0:00:13]} 94. Bc2+ {[%clk 0:00:06]}  Kb2 {[%clk 0:00:13]} 95. Be4 {[%clk 0:00:07]}  Bd6 {[%clk 0:00:12]} 96. Bc2 {[%clk 0:00:08]}  Ka3 {[%clk 0:00:12]} 97. Bg6 {[%clk 0:00:09]}  Kb4 {[%clk 0:00:11]} 98. Bc2 {[%clk 0:00:09]}  Kc5 {[%clk 0:00:12]} 99. Bh7 {[%clk 0:00:10]}  Be7 {[%clk 0:00:12]} 100. Bf5 {[%clk 0:00:10]}  Kd4 {[%clk 0:00:13]} 101. Bc2 {[%clk 0:00:10]}  Ke5 {[%clk 0:00:14]} 102. Bb3 {[%clk 0:00:10]}  Kf4 {[%clk 0:00:15]} 103. Kc2 {[%clk 0:00:10]}  Ke3 {[%clk 0:00:15]} 104. Kxc3 {[%clk 0:00:11]}  Ke2 {[%clk 0:00:15]} 105. Bc4+ {[%clk 0:00:10]}  Ke1 {[%clk 0:00:14]} 106. Bb3 {[%clk 0:00:10]}  Bf6+ {[%clk 0:00:15]} 107. Kc4 {[%clk 0:00:10]}  Be7 {[%clk 0:00:14]} 108. Kd5 {[%clk 0:00:10]}  d1=Q+ {[%clk 0:00:13]} 109. Bxd1 {[%clk 0:00:09]}  Kxd1 {[%clk 0:00:14]} 110. Kc6 {[%clk 0:00:09]}  Ba3 {[%clk 0:00:15]} 111. Kd7 {[%clk 0:00:10]}  Ke2 {[%clk 0:00:14]} 112. e7 {[%clk 0:00:11]}  Bxe7 {[%clk 0:00:14]} 1/2-1/2


[Site "https://www.chess.com"]

[Event "Titled Tuesday Blitz November 08 Early 2022"]
[White "Andrews, Todd"]
[Black "Firat, Burak"]
[WhiteFideId "2012456"]
[BlackFideId "6305881"]
[WhiteElo "2437"]
[BlackElo "2392"]
[Result "0-1"]
[Round "07"]
[TimeControl "180+1"]
[Date "2022.11.09"]
[WhiteClock "0:00:02"]
[BlackClock "0:00:21"]

1. e4 {[%clk 0:03:00]}  c5 {[%clk 0:02:59]} 2. Nf3 {[%clk 0:03:00]}  e6 {[%clk 0:02:59]} 3. d3 {[%clk 0:03:01]}  d5 {[%clk 0:02:59]} 4. Nbd2 {[%clk 0:03:01]}  Nf6 {[%clk 0:02:59]} 5. g3 {[%clk 0:03:02]}  Nc6 {[%clk 0:02:59]} 6. Bg2 {[%clk 0:03:02]}  g6 {[%clk 0:02:59]} 7. O-O {[%clk 0:03:03]}  Bg7 {[%clk 0:03:00]} 8. Re1 {[%clk 0:03:02]}  O-O {[%clk 0:03:00]} 9. c3 {[%clk 0:02:59]}  a5 {[%clk 0:02:59]} 10. a4 {[%clk 0:02:58]}  b6 {[%clk 0:02:58]} 11. e5 {[%clk 0:02:58]}  Ng4 {[%clk 0:02:57]} 12. d4 {[%clk 0:02:56]}  f6 {[%clk 0:02:57]} 13. h3 {[%clk 0:02:48]}  Nxf2 {[%clk 0:02:45]} 14. Kxf2 {[%clk 0:02:48]}  fxe5 {[%clk 0:02:46]} 15. dxe5 {[%clk 0:02:46]}  Nxe5 {[%clk 0:02:47]} 16. Kg1 {[%clk 0:02:27]}  Nd3 {[%clk 0:02:47]} 17. Rf1 {[%clk 0:02:25]}  e5 {[%clk 0:02:32]} 18. Ne1 {[%clk 0:02:06]}  Nxc1 {[%clk 0:02:13]} 19. Rxc1 {[%clk 0:02:05]}  Rxf1+ {[%clk 0:02:08]} 20. Nxf1 {[%clk 0:02:04]}  Be6 {[%clk 0:02:03]} 21. c4 {[%clk 0:01:50]}  e4 {[%clk 0:02:04]} 22. cxd5 {[%clk 0:01:49]}  Bxd5 {[%clk 0:02:04]} 23. Ne3 {[%clk 0:01:45]}  Bd4 {[%clk 0:02:04]} 24. Nc2 {[%clk 0:01:43]}  Bb3 {[%clk 0:02:03]} 25. Qe2 {[%clk 0:01:40]}  Bxc2 {[%clk 0:02:00]} 26. Rxc2 {[%clk 0:01:38]}  Qg5 {[%clk 0:02:00]} 27. Rc3 {[%clk 0:01:04]}  Qxg3 {[%clk 0:02:00]} 28. Qf2 {[%clk 0:01:00]}  Qg5 {[%clk 0:01:53]} 29. Kh1 {[%clk 0:00:53]}  Rf8 {[%clk 0:01:52]} 30. Qe2 {[%clk 0:00:52]}  Bxc3 {[%clk 0:01:44]} 31. bxc3 {[%clk 0:00:53]}  Qg3 {[%clk 0:01:43]} 32. Qc4+ {[%clk 0:00:48]}  Kg7 {[%clk 0:01:42]} 33. Qxe4 {[%clk 0:00:48]}  h5 {[%clk 0:01:29]} 34. c4 {[%clk 0:00:41]}  Rf2 {[%clk 0:01:22]} 35. Qe7+ {[%clk 0:00:32]}  Kh6 {[%clk 0:01:09]} 36. Qe6 {[%clk 0:00:32]}  Qf4 {[%clk 0:00:55]} 37. Kg1 {[%clk 0:00:25]}  Rd2 {[%clk 0:00:51]} 38. Qe8 {[%clk 0:00:19]}  Qf6 {[%clk 0:00:32]} 39. Qe4 {[%clk 0:00:16]}  Qf2+ {[%clk 0:00:27]} 40. Kh2 {[%clk 0:00:17]}  Qf6 {[%clk 0:00:27]} 41. Kg1 {[%clk 0:00:16]}  Qf2+ {[%clk 0:00:25]} 42. Kh2 {[%clk 0:00:17]}  Re2 {[%clk 0:00:26]} 43. Qe5 {[%clk 0:00:07]}  Qxe3 {[%clk 0:00:21]} 44. Qh8+ {[%clk 0:00:06]}  Kg5 {[%clk 0:00:22]} 45. Qd8+ {[%clk 0:00:06]}  Qe7 {[%clk 0:00:20]} 46. Qd5+ {[%clk 0:00:03]}  Qe5+ {[%clk 0:00:20]} 47. Qxe5+ {[%clk 0:00:02]}  Rxe5 {[%clk 0:00:21]} 0-1


[Site "https://www.chess.com"]

[Event "Titled Tuesday Blitz November 08 Early 2022"]
[White "Anton Guijarro, David"]
[Black "Milikow, Yoav"]
[WhiteFideId "2285525"]
[BlackFideId "2822237"]
[WhiteElo "2579"]
[BlackElo "2341"]
[Result "1-0"]
[Round "07"]
[TimeControl "180+1"]
[Date "2022.11.08"]
[WhiteClock "0:01:50"]
[BlackClock "0:00:44"]

1. Nf3 {[%clk 0:03:00]}  d5 {[%clk 0:02:59]} 2. c4 {[%clk 0:03:00]}  d4 {[%clk 0:02:55]} 3. b4 {[%clk 0:03:00]}  c5 {[%clk 0:02:55]} 4. g3 {[%clk 0:02:59]}  Nf6 {[%clk 0:02:55]} 5. Qa4+ {[%clk 0:02:55]}  Bd7 {[%clk 0:02:46]} 6. b5 {[%clk 0:02:55]}  Qc7 {[%clk 0:02:41]} 7. Bg2 {[%clk 0:02:55]}  e5 {[%clk 0:02:41]} 8. Nxe5 {[%clk 0:02:54]}  Qxe5 {[%clk 0:02:38]} 9. Bxb7 {[%clk 0:02:54]}  d3 {[%clk 0:02:31]} 10. Nc3 {[%clk 0:02:53]}  Na6 {[%clk 0:02:03]} 11. Bxa8 {[%clk 0:02:30]}  Nb4 {[%clk 0:02:04]} 12. O-O {[%clk 0:02:31]}  Nc2 {[%clk 0:01:37]} 13. exd3 {[%clk 0:02:28]}  Nxa1 {[%clk 0:01:33]} 14. Bb2 {[%clk 0:02:29]}  Ng4 {[%clk 0:01:04]} 15. Bc6 {[%clk 0:02:12]}  Qh5 {[%clk 0:00:58]} 16. Re1+ {[%clk 0:02:00]}  Be7 {[%clk 0:00:48]} 17. Bxd7+ {[%clk 0:02:00]}  Kxd7 {[%clk 0:00:43]} 18. Qxa7+ {[%clk 0:02:00]}  Kc8 {[%clk 0:00:44]} 19. Qa8+ {[%clk 0:01:50]}  Kc7 {[%clk 0:00:44]} 20. Nd5+ {[%clk 0:01:50]} 1-0


[Site "https://www.chess.com"]

[Event "Titled Tuesday Blitz November 08 Early 2022"]
[White "Arabidze, Meri"]
[Black "Devaev, Alexander"]
[WhiteFideId "13604040"]
[BlackFideId "4169395"]
[WhiteElo "2403"]
[BlackElo "2225"]
[Result "1-0"]
[Round "07"]
[TimeControl "180+1"]
[Date "2022.11.09"]
[WhiteClock "0:02:03"]
[BlackClock "0:02:18"]

1. Nf3 {[%clk 0:03:00]}  Nf6 {[%clk 0:02:59]} 2. c4 {[%clk 0:03:01]}  c5 {[%clk 0:02:59]} 3. b3 {[%clk 0:03:01]}  e6 {[%clk 0:03:00]} 4. Bb2 {[%clk 0:03:02]}  Nc6 {[%clk 0:03:00]} 5. e3 {[%clk 0:03:02]}  Be7 {[%clk 0:03:01]} 6. d4 {[%clk 0:03:02]}  cxd4 {[%clk 0:03:01]} 7. Nxd4 {[%clk 0:03:01]}  Qc7 {[%clk 0:03:01]} 8. Bd3 {[%clk 0:02:59]}  a6 {[%clk 0:03:01]} 9. O-O {[%clk 0:02:59]}  Ne5 {[%clk 0:03:02]} 10. Be2 {[%clk 0:02:58]}  d6 {[%clk 0:03:03]} 11. Nc3 {[%clk 0:02:57]}  O-O {[%clk 0:03:03]} 12. Rc1 {[%clk 0:02:57]}  b6 {[%clk 0:03:02]} 13. f4 {[%clk 0:02:53]}  Ned7 {[%clk 0:02:56]} 14. e4 {[%clk 0:02:46]}  Re8 {[%clk 0:02:53]} 15. Kh1 {[%clk 0:02:46]}  Bf8 {[%clk 0:02:52]} 16. Bd3 {[%clk 0:02:43]}  Bb7 {[%clk 0:02:52]} 17. Qe2 {[%clk 0:02:41]}  Rac8 {[%clk 0:02:45]} 18. Bb1 {[%clk 0:02:41]}  Ba8 {[%clk 0:02:41]} 19. Qf2 {[%clk 0:02:24]}  Nc5 {[%clk 0:02:36]} 20. Rce1 {[%clk 0:02:23]}  Ncd7 {[%clk 0:02:30]} 21. Qh4 {[%clk 0:02:19]}  Qc5 {[%clk 0:02:23]} 22. e5 {[%clk 0:02:11]}  dxe5 {[%clk 0:02:18]} 23. fxe5 {[%clk 0:02:12]}  Nxe5 {[%clk 0:02:18]} 24. Rxf6 {[%clk 0:02:05]}  gxf6 {[%clk 0:02:18]} 25. Qxh7# {[%clk 0:02:03]} 1-0


[Site "https://www.chess.com"]